[Event "Titled Tuesday Blitz January 03 Early 2023"]
[White "Skvortsov, Andrei"]
[Black "Mica, Marek"]
[WhiteFideId "24108600"]
[BlackFideId "382884"]
[WhiteElo "2313"]
[BlackElo "2256"]
[Result "1-0"]
[Round "05"]
[TimeControl "180+2"]
[Date "2023.01.03"]
[WhiteClock "0:00:09"]
[BlackClock "0:00:23"]

1. d4 {[%clk 0:02:50]}  Nf6 {[%clk 0:02:59]} 2. Nf3 {[%clk 0:02:50]}  e6 {[%clk 0:02:59]} 3. g3 {[%clk 0:02:48]}  d5 {[%clk 0:02:59]} 4. Bg2 {[%clk 0:02:48]}  Bd6 {[%clk 0:02:57]} 5. O-O {[%clk 0:02:48]}  h6 {[%clk 0:02:58]} 6. Nbd2 {[%clk 0:02:49]}  b6 {[%clk 0:02:56]} 7. c4 {[%clk 0:02:49]}  Bb7 {[%clk 0:02:55]} 8. b3 {[%clk 0:02:48]}  O-O {[%clk 0:02:53]} 9. Bb2 {[%clk 0:02:47]}  Nbd7 {[%clk 0:02:53]} 10. Re1 {[%clk 0:02:47]}  Re8 {[%clk 0:02:52]} 11. Ne5 {[%clk 0:02:39]}  c5 {[%clk 0:02:46]} 12. Nxd7 {[%clk 0:02:34]}  Qxd7 {[%clk 0:02:44]} 13. cxd5 {[%clk 0:02:30]}  Nxd5 {[%clk 0:02:38]} 14. e4 {[%clk 0:02:26]}  Nb4 {[%clk 0:02:38]} 15. Nc4 {[%clk 0:02:20]}  Rad8 {[%clk 0:02:27]} 16. a3 {[%clk 0:02:13]}  Nc6 {[%clk 0:02:18]} 17. Nxd6 {[%clk 0:02:11]}  Qxd6 {[%clk 0:02:17]} 18. dxc5 {[%clk 0:02:12]}  Qxc5 {[%clk 0:02:17]} 19. Qc1 {[%clk 0:01:59]}  Nd4 {[%clk 0:02:01]} 20. b4 {[%clk 0:01:42]}  Qb5 {[%clk 0:01:34]} 21. Qe3 {[%clk 0:01:09]}  e5 {[%clk 0:01:27]} 22. Rac1 {[%clk 0:01:07]}  Re7 {[%clk 0:01:15]} 23. Bf1 {[%clk 0:00:54]}  Qd7 {[%clk 0:01:11]} 24. Red1 {[%clk 0:00:38]}  Qg4 {[%clk 0:00:58]} 25. h3 {[%clk 0:00:35]}  Qxe4 {[%clk 0:00:41]} 26. Qxe4 {[%clk 0:00:34]}  Bxe4 {[%clk 0:00:42]} 27. Bxd4 {[%clk 0:00:19]}  exd4 {[%clk 0:00:39]} 28. Bd3 {[%clk 0:00:11]}  Bf3 {[%clk 0:00:30]} 29. Re1 {[%clk 0:00:10]}  Rde8 {[%clk 0:00:28]} 30. Rxe7 {[%clk 0:00:09]}  Rxe7 {[%clk 0:00:24]} 31. Rc8+ {[%clk 0:00:09]}  Re8 {[%clk 0:00:23]} 32. Rxe8# {[%clk 0:00:09]} 1-0


[Site "https://www.chess.com"]

[Event "Titled Tuesday Blitz January 03 Early 2023"]
[White "Tran, Thanh Tu"]
[Black "Antonica, Dragos-Andrei"]
[WhiteFideId "12401404"]
[BlackFideId "1246372"]
[WhiteElo "2412"]
[BlackElo "2373"]
[Result "0-1"]
[Round "05"]
[TimeControl "180+2"]
[Date "2023.01.03"]
[WhiteClock "0:00:06"]
[BlackClock "0:00:23"]

1. Nf3 {[%clk 0:03:00]}  Nf6 {[%clk 0:02:55]} 2. d4 {[%clk 0:03:01]}  d5 {[%clk 0:02:55]} 3. e3 {[%clk 0:03:01]}  e6 {[%clk 0:02:56]} 4. Bd3 {[%clk 0:03:01]}  c5 {[%clk 0:02:56]} 5. b3 {[%clk 0:03:01]}  Nc6 {[%clk 0:02:56]} 6. Bb2 {[%clk 0:03:01]}  b6 {[%clk 0:02:57]} 7. Ne5 {[%clk 0:02:59]}  Bb7 {[%clk 0:02:55]} 8. f4 {[%clk 0:02:58]}  Be7 {[%clk 0:02:52]} 9. a3 {[%clk 0:02:56]}  Nxe5 {[%clk 0:02:44]} 10. fxe5 {[%clk 0:02:48]}  Ne4 {[%clk 0:02:44]} 11. Bb5+ {[%clk 0:02:47]}  Kf8 {[%clk 0:02:44]} 12. O-O {[%clk 0:02:46]}  f5 {[%clk 0:02:40]} 13. exf6 {[%clk 0:02:43]}  Bxf6 {[%clk 0:02:38]} 14. Nd2 {[%clk 0:02:40]}  Nxd2 {[%clk 0:02:26]} 15. Qxd2 {[%clk 0:02:41]}  Kg8 {[%clk 0:02:25]} 16. Rf3 {[%clk 0:02:20]}  c4 {[%clk 0:02:24]} 17. bxc4 {[%clk 0:02:07]}  a6 {[%clk 0:02:23]} 18. Rxf6 {[%clk 0:01:07]}  gxf6 {[%clk 0:02:16]} 19. Ba4 {[%clk 0:01:03]}  dxc4 {[%clk 0:02:15]} 20. c3 {[%clk 0:01:03]}  Kg7 {[%clk 0:02:12]} 21. Bc2 {[%clk 0:01:02]}  Rf8 {[%clk 0:02:12]} 22. e4 {[%clk 0:01:01]}  f5 {[%clk 0:02:10]} 23. e5 {[%clk 0:00:39]}  Kh8 {[%clk 0:02:05]} 24. Rf1 {[%clk 0:00:39]}  Rg8 {[%clk 0:02:04]} 25. Rf2 {[%clk 0:00:39]}  Qd5 {[%clk 0:02:03]} 26. a4 {[%clk 0:00:32]}  Rg4 {[%clk 0:02:01]} 27. Bd1 {[%clk 0:00:31]}  Rg6 {[%clk 0:01:46]} 28. Bh5 {[%clk 0:00:28]}  Rg7 {[%clk 0:01:43]} 29. Bf3 {[%clk 0:00:05]}  Qd7 {[%clk 0:01:37]} 30. Bxb7 {[%clk 0:00:05]}  Qxb7 {[%clk 0:01:38]} 31. Ba3 {[%clk 0:00:05]}  b5 {[%clk 0:01:36]} 32. a5 {[%clk 0:00:05]}  Qe4 {[%clk 0:01:33]} 33. Bb4 {[%clk 0:00:04]}  Rag8 {[%clk 0:01:32]} 34. h3 {[%clk 0:00:05]}  f4 {[%clk 0:01:29]} 35. Kh2 {[%clk 0:00:04]}  f3 {[%clk 0:01:27]} 36. g4 {[%clk 0:00:03]}  Rf7 {[%clk 0:01:25]} 37. Bd6 {[%clk 0:00:02]}  Qd3 {[%clk 0:01:21]} 38. Qh6 {[%clk 0:00:02]}  Qg6 {[%clk 0:01:13]} 39. Qh4 {[%clk 0:00:02]}  Qg5 {[%clk 0:01:13]} 40. Qxg5 {[%clk 0:00:01]}  Rxg5 {[%clk 0:01:13]} 41. Kg3 {[%clk 0:00:02]}  Rg8 {[%clk 0:01:01]} 42. Rxf3 {[%clk 0:00:03]}  Rxf3+ {[%clk 0:00:58]} 43. Kxf3 {[%clk 0:00:04]}  Kg7 {[%clk 0:00:59]} 44. Ke4 {[%clk 0:00:04]}  Kf7 {[%clk 0:00:59]} 45. d5 {[%clk 0:00:05]}  Rh8 {[%clk 0:00:55]} 46. Kd4 {[%clk 0:00:04]}  Rc8 {[%clk 0:00:53]} 47. g5 {[%clk 0:00:04]}  Rg8 {[%clk 0:00:46]} 48. h4 {[%clk 0:00:04]}  Rc8 {[%clk 0:00:45]} 49. Bb4 {[%clk 0:00:04]}  Rd8 {[%clk 0:00:40]} 50. d6 {[%clk 0:00:05]}  Rc8 {[%clk 0:00:41]} 51. Bc5 {[%clk 0:00:05]}  Ke8 {[%clk 0:00:40]} 52. Bb4 {[%clk 0:00:05]}  Kd7 {[%clk 0:00:41]} 53. Bc5 {[%clk 0:00:05]}  Rf8 {[%clk 0:00:40]} 54. Ke4 {[%clk 0:00:05]}  Rf1 {[%clk 0:00:38]} 55. h5 {[%clk 0:00:05]}  Rh1 {[%clk 0:00:36]} 56. g6 {[%clk 0:00:05]}  hxg6 {[%clk 0:00:36]} 57. hxg6 {[%clk 0:00:05]}  Rh6 {[%clk 0:00:36]} 58. g7 {[%clk 0:00:05]}  Rg6 {[%clk 0:00:36]} 59. Bb4 {[%clk 0:00:05]}  Rxg7 {[%clk 0:00:36]} 60. Kd4 {[%clk 0:00:06]}  Kc6 {[%clk 0:00:36]} 61. Ke4 {[%clk 0:00:07]}  Rg4+ {[%clk 0:00:35]} 62. Kf3 {[%clk 0:00:07]}  Rh4 {[%clk 0:00:36]} 63. Ke3 {[%clk 0:00:07]}  Rh7 {[%clk 0:00:27]} 64. Ke4 {[%clk 0:00:08]}  Rf7 {[%clk 0:00:27]} 65. Kd4 {[%clk 0:00:08]}  Rf3 {[%clk 0:00:25]} 66. Ke4 {[%clk 0:00:08]}  Rd3 {[%clk 0:00:25]} 67. Kf4 {[%clk 0:00:08]}  Kd5 {[%clk 0:00:23]} 68. d7 {[%clk 0:00:08]}  Kc6 {[%clk 0:00:23]} 69. Bd6 {[%clk 0:00:06]}  Kxd7 {[%clk 0:00:23]} 0-1


[Site "https://www.chess.com"]

[Event "Titled Tuesday Blitz January 03 Early 2023"]
[White "Carlstedt, Jonathan"]
[Black "Orozbaev, Eldiar"]
[WhiteFideId "24614386"]
[BlackFideId "13802240"]
[WhiteElo "2441"]
[BlackElo "2235"]
[Result "0-1"]
[Round "05"]
[TimeControl "180+2"]
[Date "2023.01.03"]
[WhiteClock "0:00:09"]
[BlackClock "0:00:57"]

1. f4 {[%clk 0:02:54]}  e5 {[%clk 0:02:58]} 2. fxe5 {[%clk 0:02:50]}  d6 {[%clk 0:02:58]} 3. exd6 {[%clk 0:02:49]}  Bxd6 {[%clk 0:02:59]} 4. Nf3 {[%clk 0:02:49]}  g5 {[%clk 0:02:45]} 5. g3 {[%clk 0:02:47]}  h5 {[%clk 0:02:42]} 6. d4 {[%clk 0:02:45]}  h4 {[%clk 0:02:24]} 7. Bxg5 {[%clk 0:02:44]}  Be7 {[%clk 0:02:10]} 8. Bxe7 {[%clk 0:02:33]}  Nxe7 {[%clk 0:02:11]} 9. Nxh4 {[%clk 0:02:28]}  Nbc6 {[%clk 0:02:12]} 10. e3 {[%clk 0:02:27]}  Nd5 {[%clk 0:02:09]} 11. Ng2 {[%clk 0:02:25]}  Bh3 {[%clk 0:02:08]} 12. Qf3 {[%clk 0:02:23]}  Qd7 {[%clk 0:02:01]} 13. Na3 {[%clk 0:02:12]}  O-O-O {[%clk 0:01:59]} 14. O-O-O {[%clk 0:02:11]}  Bg4 {[%clk 0:01:59]} 15. Qf2 {[%clk 0:02:04]}  Bxd1 {[%clk 0:01:59]} 16. Kxd1 {[%clk 0:02:05]}  Rhe8 {[%clk 0:01:54]} 17. c3 {[%clk 0:01:54]}  Qe7 {[%clk 0:01:50]} 18. Nc2 {[%clk 0:01:52]}  Ne5 {[%clk 0:01:44]} 19. Be2 {[%clk 0:01:45]}  Ng6 {[%clk 0:01:41]} 20. Kc1 {[%clk 0:01:40]}  Nf6 {[%clk 0:01:21]} 21. Qf5+ {[%clk 0:01:35]}  Kb8 {[%clk 0:01:20]} 22. Bf3 {[%clk 0:01:34]}  Ne4 {[%clk 0:01:16]} 23. Bxe4 {[%clk 0:01:34]}  Qxe4 {[%clk 0:01:17]} 24. Qxe4 {[%clk 0:01:34]}  Rxe4 {[%clk 0:01:17]} 25. Rf1 {[%clk 0:01:34]}  Rh8 {[%clk 0:01:14]} 26. h4 {[%clk 0:01:20]}  Rg4 {[%clk 0:01:11]} 27. Rf3 {[%clk 0:01:20]}  a6 {[%clk 0:01:08]} 28. Nb4 {[%clk 0:01:15]}  Ne7 {[%clk 0:01:06]} 29. Nd3 {[%clk 0:00:41]}  Rhg8 {[%clk 0:01:04]} 30. Rxf7 {[%clk 0:00:39]}  Rxg3 {[%clk 0:01:04]} 31. Ndf4 {[%clk 0:00:31]}  Nd5 {[%clk 0:01:04]} 32. Nxd5 {[%clk 0:00:27]}  Rxg2 {[%clk 0:01:04]} 33. Nf6 {[%clk 0:00:15]}  R8g3 {[%clk 0:01:00]} 34. Nd7+ {[%clk 0:00:11]}  Ka7 {[%clk 0:00:59]} 35. Re7 {[%clk 0:00:09]}  Rh3 {[%clk 0:00:57]} 0-1


[Site "https://www.chess.com"]

[Event "Titled Tuesday Blitz January 03 Early 2023"]
[White "Goltsev, Dmitry"]
[Black "Andreev, Eduard"]
[WhiteFideId "24176710"]
[BlackFideId "14103400"]
[WhiteElo "2269"]
[BlackElo "2413"]
[Result "1-0"]
[Round "05"]
[TimeControl "180+2"]
[Date "2023.01.03"]
[WhiteClock "0:00:11"]
[BlackClock "0:00:10"]

1. e4 {[%clk 0:02:43]}  c6 {[%clk 0:02:59]} 2. d4 {[%clk 0:02:43]}  d5 {[%clk 0:03:00]} 3. Nc3 {[%clk 0:02:44]}  dxe4 {[%clk 0:03:01]} 4. Nxe4 {[%clk 0:02:45]}  Nf6 {[%clk 0:03:01]} 5. Qe2 {[%clk 0:02:45]}  Nxe4 {[%clk 0:03:00]} 6. Qxe4 {[%clk 0:02:46]}  Nd7 {[%clk 0:03:01]} 7. Nf3 {[%clk 0:02:46]}  Nf6 {[%clk 0:03:02]} 8. Qd3 {[%clk 0:02:47]}  Bg4 {[%clk 0:02:58]} 9. Be2 {[%clk 0:02:46]}  e6 {[%clk 0:02:57]} 10. c3 {[%clk 0:02:42]}  Bd6 {[%clk 0:02:57]} 11. O-O {[%clk 0:02:40]}  O-O {[%clk 0:02:56]} 12. h3 {[%clk 0:02:40]}  Bf5 {[%clk 0:02:52]} 13. Qd1 {[%clk 0:02:38]}  Qc7 {[%clk 0:02:51]} 14. Bg5 {[%clk 0:02:36]}  Ne4 {[%clk 0:02:48]} 15. Be3 {[%clk 0:02:35]}  h6 {[%clk 0:02:45]} 16. Nd2 {[%clk 0:02:30]}  Nxd2 {[%clk 0:02:39]} 17. Qxd2 {[%clk 0:02:31]}  Rfd8 {[%clk 0:02:37]} 18. Rfe1 {[%clk 0:02:27]}  Rac8 {[%clk 0:02:36]} 19. Bc4 {[%clk 0:02:20]}  c5 {[%clk 0:02:32]} 20. d5 {[%clk 0:02:18]}  exd5 {[%clk 0:01:39]} 21. Bxd5 {[%clk 0:02:19]}  Bh2+ {[%clk 0:01:37]} 22. Kh1 {[%clk 0:02:17]}  c4 {[%clk 0:01:24]} 23. g3 {[%clk 0:01:17]}  Bxg3 {[%clk 0:00:33]} 24. fxg3 {[%clk 0:01:18]}  Be6 {[%clk 0:00:32]} 25. Bf4 {[%clk 0:01:02]}  Bxd5+ {[%clk 0:00:31]} 26. Kh2 {[%clk 0:00:56]}  Qc6 {[%clk 0:00:29]} 27. Rad1 {[%clk 0:00:48]}  Rd7 {[%clk 0:00:22]} 28. Qd4 {[%clk 0:00:43]}  Be6 {[%clk 0:00:20]} 29. Qxa7 {[%clk 0:00:40]}  Rxd1 {[%clk 0:00:17]} 30. Rxd1 {[%clk 0:00:41]}  Qf3 {[%clk 0:00:17]} 31. Qd4 {[%clk 0:00:24]}  Qe2+ {[%clk 0:00:15]} 32. Kg1 {[%clk 0:00:19]}  Bxh3 {[%clk 0:00:16]} 33. Rd2 {[%clk 0:00:19]}  Qf1+ {[%clk 0:00:16]} 34. Kh2 {[%clk 0:00:18]}  Re8 {[%clk 0:00:16]} 35. Rf2 {[%clk 0:00:13]}  Re2 {[%clk 0:00:16]} 36. Rxe2 {[%clk 0:00:12]}  Qxe2+ {[%clk 0:00:16]} 37. Kxh3 {[%clk 0:00:13]}  Qxb2 {[%clk 0:00:17]} 38. Qxc4 {[%clk 0:00:12]}  b5 {[%clk 0:00:15]} 39. Qc8+ {[%clk 0:00:11]}  Kh7 {[%clk 0:00:15]} 40. Qf5+ {[%clk 0:00:12]}  Kg8 {[%clk 0:00:16]} 41. Qd3 {[%clk 0:00:11]}  g5 {[%clk 0:00:14]} 42. Be5 {[%clk 0:00:10]}  Qxa2 {[%clk 0:00:12]} 43. Qd8+ {[%clk 0:00:10]}  Kh7 {[%clk 0:00:11]} 44. Qh8+ {[%clk 0:00:11]}  Kg6 {[%clk 0:00:12]} 45. Qf6+ {[%clk 0:00:11]}  Kh7 {[%clk 0:00:10]} 46. Qg7# {[%clk 0:00:11]} 1-0


[Site "https://www.chess.com"]

[Event "Titled Tuesday Blitz January 03 Early 2023"]
[White "Bettalli, Francesco"]
[Black "Ilkhomi, Jaloliddin"]
[WhiteFideId "2816453"]
[BlackFideId "14700948"]
[WhiteElo "2252"]
[BlackElo "1997"]
[Result "1-0"]
[Round "05"]
[TimeControl "180+2"]
[Date "2023.01.03"]
[WhiteClock "0:02:10"]
[BlackClock "0:00:02"]

1. d4 {[%clk 0:02:51]}  Nf6 {[%clk 0:02:59]} 2. Nc3 {[%clk 0:02:50]}  e6 {[%clk 0:02:57]} 3. e4 {[%clk 0:02:42]}  d5 {[%clk 0:02:56]} 4. e5 {[%clk 0:02:42]}  Nfd7 {[%clk 0:02:57]} 5. Nce2 {[%clk 0:02:43]}  c5 {[%clk 0:02:56]} 6. c3 {[%clk 0:02:43]}  Nc6 {[%clk 0:02:57]} 7. f4 {[%clk 0:02:43]}  Be7 {[%clk 0:02:57]} 8. Nf3 {[%clk 0:02:44]}  g6 {[%clk 0:02:57]} 9. g3 {[%clk 0:02:43]}  h5 {[%clk 0:02:57]} 10. Be3 {[%clk 0:02:43]}  b6 {[%clk 0:02:57]} 11. Bg2 {[%clk 0:02:43]}  Bb7 {[%clk 0:02:58]} 12. O-O {[%clk 0:02:44]}  Qc7 {[%clk 0:02:58]} 13. Qd2 {[%clk 0:02:44]}  O-O-O {[%clk 0:02:50]} 14. Rac1 {[%clk 0:02:44]}  cxd4 {[%clk 0:02:47]} 15. Nexd4 {[%clk 0:02:42]}  a6 {[%clk 0:02:28]} 16. Nxc6 {[%clk 0:02:40]}  Bxc6 {[%clk 0:02:23]} 17. Nd4 {[%clk 0:02:41]}  Bc5 {[%clk 0:02:14]} 18. c4 {[%clk 0:02:33]}  Bxd4 {[%clk 0:01:39]} 19. Bxd4 {[%clk 0:02:25]}  dxc4 {[%clk 0:01:27]} 20. Rxc4 {[%clk 0:02:23]}  Nc5 {[%clk 0:01:27]} 21. Bxc6 {[%clk 0:02:20]}  Qxc6 {[%clk 0:01:24]} 22. Qe3 {[%clk 0:02:20]}  Qd5 {[%clk 0:01:19]} 23. Rfc1 {[%clk 0:02:18]}  Kb7 {[%clk 0:00:31]} 24. Bxc5 {[%clk 0:02:15]}  bxc5 {[%clk 0:00:26]} 25. Rxc5 {[%clk 0:02:14]}  Qd4 {[%clk 0:00:10]} 26. Rc7+ {[%clk 0:02:14]}  Ka8 {[%clk 0:00:07]} 27. Rc8+ {[%clk 0:02:10]}  Kb7 {[%clk 0:00:03]} 28. Qxd4 {[%clk 0:02:09]}  Rxd4 {[%clk 0:00:02]} 29. Rxh8 {[%clk 0:02:10]} 1-0


[Site "https://www.chess.com"]

[Event "Titled Tuesday Blitz January 03 Early 2023"]
[White "Gheorghiu, Calin"]
[Black "Demin, Vladimir"]
[WhiteFideId "1200305"]
[BlackFideId "4167457"]
[WhiteElo "2313"]
[BlackElo "2430"]
[Result "0-1"]
[Round "05"]
[TimeControl "180+2"]
[Date "2023.01.03"]
[WhiteClock "0:00:02"]
[BlackClock "0:02:00"]

1. d4 {[%clk 0:00:41]}  Nf6 {[%clk 0:02:57]} 2. Bf4 {[%clk 0:00:38]}  d5 {[%clk 0:02:57]} 3. Nf3 {[%clk 0:00:38]}  c5 {[%clk 0:02:58]} 4. e3 {[%clk 0:00:37]}  Nc6 {[%clk 0:02:58]} 5. Nbd2 {[%clk 0:00:37]}  Qb6 {[%clk 0:02:57]} 6. dxc5 {[%clk 0:00:37]}  Qxb2 {[%clk 0:02:57]} 7. Rb1 {[%clk 0:00:38]}  Qc3 {[%clk 0:02:57]} 8. Bb5 {[%clk 0:00:35]}  a6 {[%clk 0:02:56]} 9. Ba4 {[%clk 0:00:28]}  g6 {[%clk 0:02:52]} 10. O-O {[%clk 0:00:27]}  Bg7 {[%clk 0:02:52]} 11. e4 {[%clk 0:00:26]}  dxe4 {[%clk 0:02:47]} 12. Be5 {[%clk 0:00:26]}  Qxc5 {[%clk 0:02:47]} 13. Nxe4 {[%clk 0:00:26]}  Qa5 {[%clk 0:02:44]} 14. Nxf6+ {[%clk 0:00:22]}  Bxf6 {[%clk 0:02:40]} 15. Bxf6 {[%clk 0:00:22]}  exf6 {[%clk 0:02:41]} 16. Bxc6+ {[%clk 0:00:17]}  bxc6 {[%clk 0:02:41]} 17. Qd6 {[%clk 0:00:18]}  Qd5 {[%clk 0:02:38]} 18. Rfe1+ {[%clk 0:00:17]}  Be6 {[%clk 0:02:38]} 19. Qa3 {[%clk 0:00:13]}  Rd8 {[%clk 0:02:24]} 20. Rb7 {[%clk 0:00:06]}  c5 {[%clk 0:02:19]} 21. Qa4+ {[%clk 0:00:07]}  Kf8 {[%clk 0:02:16]} 22. Ra7 {[%clk 0:00:05]}  Kg7 {[%clk 0:02:15]} 23. Rxa6 {[%clk 0:00:05]}  g5 {[%clk 0:02:08]} 24. c3 {[%clk 0:00:02]}  h5 {[%clk 0:02:07]} 25. h4 {[%clk 0:00:01]}  g4 {[%clk 0:02:06]} 26. Nh2 {[%clk 0:00:02]}  Qd2 {[%clk 0:02:03]} 27. Rf1 {[%clk 0:00:02]}  Qxc3 {[%clk 0:02:00]} 0-1


[Site "https://www.chess.com"]

[Event "Titled Tuesday Blitz January 03 Early 2023"]
[White "Atakhan, Abtin"]
[Black "Ibadov, Dashgyn"]
[WhiteFideId "22502203"]
[BlackFideId "24107514"]
[WhiteElo "2422"]
[BlackElo "2391"]
[Result "1-0"]
[Round "05"]
[TimeControl "180+2"]
[Date "2023.01.03"]
[WhiteClock "0:00:20"]
[BlackClock "0:00:01"]

1. Nf3 {[%clk 0:03:00]}  d5 {[%clk 0:02:59]} 2. d4 {[%clk 0:02:59]}  Nf6 {[%clk 0:02:59]} 3. Bf4 {[%clk 0:03:00]}  c5 {[%clk 0:02:59]} 4. e3 {[%clk 0:02:59]}  Nc6 {[%clk 0:02:58]} 5. Nbd2 {[%clk 0:02:58]}  Qb6 {[%clk 0:02:52]} 6. dxc5 {[%clk 0:02:58]}  Qxb2 {[%clk 0:02:51]} 7. Rb1 {[%clk 0:02:58]}  Qc3 {[%clk 0:02:51]} 8. Bb5 {[%clk 0:02:57]}  g6 {[%clk 0:02:52]} 9. O-O {[%clk 0:02:57]}  Bg7 {[%clk 0:02:52]} 10. Nb3 {[%clk 0:02:48]}  O-O {[%clk 0:02:49]} 11. a3 {[%clk 0:02:39]}  e5 {[%clk 0:02:39]} 12. Bg3 {[%clk 0:02:27]}  Ne4 {[%clk 0:02:37]} 13. Qxd5 {[%clk 0:02:10]}  Nxg3 {[%clk 0:02:32]} 14. hxg3 {[%clk 0:02:11]}  Be6 {[%clk 0:02:17]} 15. Qe4 {[%clk 0:02:10]}  Bf5 {[%clk 0:02:11]} 16. Qc4 {[%clk 0:02:03]}  Qxc4 {[%clk 0:02:08]} 17. Bxc4 {[%clk 0:02:04]}  Bxc2 {[%clk 0:02:09]} 18. Rbc1 {[%clk 0:02:02]}  Bf5 {[%clk 0:02:04]} 19. Bd5 {[%clk 0:02:00]}  Bd3 {[%clk 0:01:30]} 20. Rfd1 {[%clk 0:01:56]}  e4 {[%clk 0:01:31]} 21. Bxc6 {[%clk 0:01:53]}  bxc6 {[%clk 0:01:30]} 22. Nfd4 {[%clk 0:01:53]}  Rab8 {[%clk 0:01:26]} 23. Na5 {[%clk 0:01:50]}  Bxd4 {[%clk 0:01:08]} 24. exd4 {[%clk 0:01:47]}  Rfc8 {[%clk 0:01:07]} 25. Nc4 {[%clk 0:01:18]}  f6 {[%clk 0:00:58]} 26. Nd6 {[%clk 0:01:15]}  Rc7 {[%clk 0:00:53]} 27. f3 {[%clk 0:01:02]}  f5 {[%clk 0:00:48]} 28. Re1 {[%clk 0:01:02]}  Rb3 {[%clk 0:00:41]} 29. Re3 {[%clk 0:00:53]}  Rxa3 {[%clk 0:00:32]} 30. fxe4 {[%clk 0:00:54]}  fxe4 {[%clk 0:00:33]} 31. Nxe4 {[%clk 0:00:28]}  Re7 {[%clk 0:00:33]} 32. Nf6+ {[%clk 0:00:24]}  Kf7 {[%clk 0:00:33]} 33. Rf3 {[%clk 0:00:25]}  Kg7 {[%clk 0:00:14]} 34. d5 {[%clk 0:00:23]}  cxd5 {[%clk 0:00:09]} 35. Nxd5 {[%clk 0:00:23]}  Rd7 {[%clk 0:00:05]} 36. c6 {[%clk 0:00:24]}  Rxd5 {[%clk 0:00:01]} 37. c7 {[%clk 0:00:25]}  Bf5 {[%clk 0:00:01]} 38. Rxf5 {[%clk 0:00:20]} 1-0


[Site "https://www.chess.com"]

[Event "Titled Tuesday Blitz January 03 Early 2023"]
[White "Krstic, Milos"]
[Black "Ginzburg, Yakov"]
[WhiteFideId "954888"]
[BlackFideId "4157176"]
[WhiteElo "2183"]
[BlackElo "2405"]
[Result "1-0"]
[Round "05"]
[TimeControl "180+2"]
[Date "2023.01.03"]
[WhiteClock "0:01:25"]
[BlackClock "0:00:02"]

1. e4 {[%clk 0:02:57]}  c5 {[%clk 0:02:59]} 2. Nf3 {[%clk 0:02:57]}  e6 {[%clk 0:02:59]} 3. c4 {[%clk 0:02:56]}  Nc6 {[%clk 0:02:58]} 4. d4 {[%clk 0:02:57]}  cxd4 {[%clk 0:02:58]} 5. Nxd4 {[%clk 0:02:57]}  Nf6 {[%clk 0:02:58]} 6. Nc3 {[%clk 0:02:58]}  Bb4 {[%clk 0:02:58]} 7. Nxc6 {[%clk 0:02:59]}  bxc6 {[%clk 0:02:57]} 8. Qc2 {[%clk 0:02:58]}  Qa5 {[%clk 0:02:47]} 9. Bd2 {[%clk 0:02:51]}  Qc7 {[%clk 0:02:32]} 10. Be2 {[%clk 0:02:34]}  O-O {[%clk 0:02:32]} 11. O-O {[%clk 0:02:34]}  Be7 {[%clk 0:02:29]} 12. Rac1 {[%clk 0:02:27]}  e5 {[%clk 0:02:26]} 13. Na4 {[%clk 0:02:22]}  d6 {[%clk 0:02:23]} 14. b3 {[%clk 0:02:13]}  Be6 {[%clk 0:02:09]} 15. f3 {[%clk 0:02:09]}  Nd7 {[%clk 0:02:00]} 16. Be3 {[%clk 0:02:09]}  f5 {[%clk 0:01:58]} 17. exf5 {[%clk 0:02:08]}  Bxf5 {[%clk 0:01:58]} 18. Bd3 {[%clk 0:02:08]}  Bxd3 {[%clk 0:01:54]} 19. Qxd3 {[%clk 0:02:09]}  Rae8 {[%clk 0:01:50]} 20. Nc3 {[%clk 0:01:53]}  h6 {[%clk 0:01:27]} 21. Rfd1 {[%clk 0:01:53]}  Nf6 {[%clk 0:01:17]} 22. Ne4 {[%clk 0:01:52]}  Rd8 {[%clk 0:01:08]} 23. Nxf6+ {[%clk 0:01:47]}  Bxf6 {[%clk 0:01:08]} 24. Qe4 {[%clk 0:01:42]}  Rfe8 {[%clk 0:00:57]} 25. Rc2 {[%clk 0:01:37]}  Rd7 {[%clk 0:00:22]} 26. Qg6 {[%clk 0:01:36]}  Kf8 {[%clk 0:00:06]} 27. Bxh6 {[%clk 0:01:36]}  d5 {[%clk 0:00:04]} 28. Qxf6+ {[%clk 0:01:35]}  Kg8 {[%clk 0:00:04]} 29. Qg6 {[%clk 0:01:34]}  Rd6 {[%clk 0:00:04]} 30. Qxe8+ {[%clk 0:01:33]}  Kh7 {[%clk 0:00:04]} 31. Be3 {[%clk 0:01:32]}  d4 {[%clk 0:00:03]} 32. Bf2 {[%clk 0:01:29]}  d3 {[%clk 0:00:03]} 33. Rcd2 {[%clk 0:01:29]}  Rg6 {[%clk 0:00:02]} 34. Rxd3 {[%clk 0:01:25]} 1-0


[Site "https://www.chess.com"]

[Event "Titled Tuesday Blitz January 03 Early 2023"]
[White "Malek, Jan"]
[Black "Mikhalsky, Vladimir"]
[WhiteFideId "21864080"]
[BlackFideId "14144352"]
[WhiteElo "2370"]
[BlackElo "2219"]
[Result "0-1"]
[Round "05"]
[TimeControl "180+2"]
[Date "2023.01.03"]
[WhiteClock "0:00:01"]
[BlackClock "0:01:24"]

1. Nf3 {[%clk 0:02:56]}  c5 {[%clk 0:03:00]} 2. b3 {[%clk 0:02:56]}  Nc6 {[%clk 0:02:59]} 3. Bb2 {[%clk 0:02:56]}  f6 {[%clk 0:02:55]} 4. e4 {[%clk 0:02:55]}  e5 {[%clk 0:02:55]} 5. Bc4 {[%clk 0:02:54]}  Nge7 {[%clk 0:02:49]} 6. O-O {[%clk 0:02:53]}  d5 {[%clk 0:02:47]} 7. exd5 {[%clk 0:02:52]}  Nxd5 {[%clk 0:02:47]} 8. Re1 {[%clk 0:02:50]}  Be6 {[%clk 0:02:46]} 9. Nc3 {[%clk 0:02:42]}  Be7 {[%clk 0:02:46]} 10. Bb5 {[%clk 0:02:27]}  Qd7 {[%clk 0:02:43]} 11. Nxd5 {[%clk 0:02:04]}  Bxd5 {[%clk 0:02:42]} 12. c4 {[%clk 0:01:49]}  Be6 {[%clk 0:02:34]} 13. Bxe5 {[%clk 0:01:02]}  fxe5 {[%clk 0:02:33]} 14. Nxe5 {[%clk 0:01:03]}  Qd6 {[%clk 0:02:32]} 15. Qh5+ {[%clk 0:01:03]}  Kd8 {[%clk 0:02:25]} 16. Nf7+ {[%clk 0:00:28]}  Bxf7 {[%clk 0:02:24]} 17. Qxf7 {[%clk 0:00:29]}  Qf6 {[%clk 0:02:10]} 18. Qd5+ {[%clk 0:00:24]}  Kc7 {[%clk 0:02:10]} 19. Qe4 {[%clk 0:00:14]}  Bd6 {[%clk 0:02:07]} 20. Rad1 {[%clk 0:00:09]}  Nd4 {[%clk 0:02:02]} 21. Qd5 {[%clk 0:00:07]}  a6 {[%clk 0:01:57]} 22. Ba4 {[%clk 0:00:06]}  b5 {[%clk 0:01:54]} 23. cxb5 {[%clk 0:00:06]}  axb5 {[%clk 0:01:54]} 24. Bxb5 {[%clk 0:00:05]}  Nxb5 {[%clk 0:01:53]} 25. Re6 {[%clk 0:00:05]}  Qf4 {[%clk 0:01:51]} 26. g3 {[%clk 0:00:04]}  Qd4 {[%clk 0:01:49]} 27. Qh5 {[%clk 0:00:03]}  g6 {[%clk 0:01:47]} 28. Qe2 {[%clk 0:00:03]}  Na7 {[%clk 0:01:36]} 29. Rc1 {[%clk 0:00:03]}  Nc6 {[%clk 0:01:35]} 30. Rc4 {[%clk 0:00:02]}  Qd5 {[%clk 0:01:31]} 31. Qe3 {[%clk 0:00:02]}  Nd4 {[%clk 0:01:29]} 32. Rf6 {[%clk 0:00:01]}  Rhe8 {[%clk 0:01:27]} 33. Qd3 {[%clk 0:00:01]}  Re1+ {[%clk 0:01:24]} 0-1


[Site "https://www.chess.com"]